bitfinex/quotes_BTCUSD_20250714
["timestamp","ask_amount","ask_price","bid_price","bid_amount"]
[1752526748925,0.40163778,120330.0,120320.0,0.27857796]
[1752526749134,0.40163778,120330.0,120320.0,0.27026735]
[1752526750822,0.39332758,120330.0,120320.0,0.26195639]
[1752526751269,0.38501717,120330.0,120320.0,0.20364536]
[1752526751528,0.38501717,120330.0,120320.0,0.18435646]
[1752526751993,0.38501717,120330.0,120320.0,0.23435646]
[1752526752231,0.38501717,120330.0,120320.0,0.18435646]
[1752526752696,0.38501717,120330.0,120320.0,0.24266742]
[1752526753640,0.38501717,120330.0,120320.0,0.27006742]
[1752526753863,0.39332744,120330.0,120320.0,0.29187899]
[1752526753992,0.39332744,120330.0,120320.0,0.31997899]
[1752526754235,0.23542778,120330.0,120320.0,0.3199785]
[1752526754431,0.22711702,120330.0,120320.0,0.3199785]
[1752526754675,0.23339701,120330.0,120320.0,0.70593034]
[1752526754893,0.23339687,120330.0,120320.0,0.70593034]
[1752526755339,0.01661778,120350.0,120340.0,0.2411245]
[1752526755545,0.40991503,120350.0,120340.0,0.67801697]
[1752526755755,0.83873902,120350.0,120340.0,0.05]
[1752526755961,0.1890464,120340.0,120330.0,0.24114066]
[1752526756166,0.19945038,120330.0,120320.0,0.23518147]
[1752526756375,0.40994749,120330.0,120320.0,0.24349229]
[1752526756590,0.28282749,120330.0,120320.0,0.25180304]
[1752526756803,0.23542743,120330.0,120320.0,0.31226372]
[1752526757217,0.40163702,120330.0,120320.0,0.31226372]
[1752526757427,0.40994749,120330.0,120320.0,0.25395304]
[1752526757639,0.40994749,120330.0,120320.0,0.25495304]
[1752526758783,0.86829504,120330.0,120320.0,0.05151079]
[1752526758988,0.91366499,120330.0,120320.0,0.00151079]
[1752526759219,0.91362499,120330.0,120320.0,0.00151079]
[1752526759953,0.46981829,120330.0,120320.0,0.00051079]
[1752526760171,0.44061829,120330.0,120320.0,0.00051079]
[1752526760381,0.41081829,120330.0,120320.0,0.00051079]
[1752526761140,0.85217013,120330.0,120320.0,0.00051079]
[1752526762197,0.85417013,120330.0,120320.0,0.00051079]
[1752526762617,0.93548747,120330.0,120320.0,0.00051079]
[1752526764583,0.82627013,120330.0,120320.0,0.00051079]
[1752526764809,0.79877013,120330.0,120320.0,0.00051079]
[1752526765028,0.28274829,120330.0,120320.0,0.22932419]
[1752526765246,0.40982829,120330.0,120320.0,0.06310079]
[1752526766563,0.40982829,120330.0,120320.0,0.00051079]
[1752526766805,0.79578013,120330.0,120320.0,0.00051079]
[1752526767022,0.93598747,120330.0,120320.0,0.00051079]
[1752526767451,1.34467013,120330.0,120320.0,0.00051079]
[1752526768103,1.73062197,120330.0,120320.0,0.00051079]
[1752526768320,1.86334055,120330.0,120320.0,0.00051079]
[1752526768949,1.86134055,120330.0,120320.0,0.00051079]
[1752526769152,1.87926094,120330.0,120320.0,0.00051079]
[1752526769364,1.99112077,120330.0,120320.0,0.00051079]
[1752526769577,1.98912077,120330.0,120320.0,0.00051079]
[1752526769993,1.99112077,120330.0,120320.0,0.00051079]
[1752526770206,1.86404077,120330.0,120320.0,0.00051079]
[1752526770431,0.95935726,120330.0,120320.0,0.00051079]
[1752526770666,1.47738871,120330.0,120320.0,0.00051079]
[1752526770886,1.86334055,120330.0,120320.0,0.00051079]
[1752526771522,2.28123415,120330.0,120320.0,0.00051079]
[1752526771735,1.89528231,120330.0,120320.0,0.00051079]
[1752526771958,1.97659965,120330.0,120320.0,0.00051079]
[1752526772201,2.36255149,120330.0,120320.0,1e-08]
[1752526772414,2.34465789,120330.0,120320.0,1e-08]
[1752526772634,2.37320038,120330.0,120320.0,1e-08]
[1752526772843,2.39108638,120330.0,120320.0,1e-08]
[1752526773229,2.42666929,120330.0,120320.0,1e-08]
[1752526773699,2.04218794,120330.0,120320.0,1e-08]
[1752526773939,0.68741649,120300.0,120290.0,0.0004]
[1752526774159,1.51036316,120300.0,120290.0,0.00055285]
[1752526774372,1.93890565,120300.0,120290.0,0.00055285]
[1752526774619,1.94198565,120300.0,120290.0,0.00055285]
[1752526774820,1.97756856,120300.0,120290.0,0.00055285]
[1752526775005,2.00252356,120300.0,120290.0,0.00055285]
[1752526775212,1.99476318,120300.0,120290.0,0.00055285]
[1752526775422,1.72999438,120300.0,120290.0,0.00055285]
[1752526775630,1.45707438,120300.0,120290.0,0.00055285]
[1752526776054,1.45807438,120300.0,120290.0,0.00055285]
[1752526776616,0.18292125,120270.0,120260.0,0.1004]
[1752526776940,0.7793402,120270.0,120260.0,0.1505532]
[1752526778452,0.7793402,120270.0,120260.0,0.1535532]
[1752526779533,0.7793402,120270.0,120260.0,0.2140932]
[1752526779714,0.39338836,120270.0,120260.0,0.2171432]
[1752526780357,0.86373754,120270.0,120260.0,0.1035532]
[1752526780567,1.21827839,120270.0,120260.0,0.1035532]
[1752526780793,1.27337839,120270.0,120260.0,0.1035532]
[1752526781054,1.37333839,120270.0,120260.0,0.1035532]
[1752526781280,1.40188088,120270.0,120260.0,0.1035532]
[1752526781493,1.41143755,120270.0,120260.0,0.1035532]
[1752526781706,1.41143755,120270.0,120260.0,1e-08]
[1752526781707,1.48418909,120270.0,120260.0,1e-08]
[1752526781922,0.73426235,120260.0,120250.0,0.0004]
[1752526782163,1.91456396,120260.0,120250.0,0.0004]
[1752526782375,1.53169212,120260.0,120250.0,0.0004]
[1752526783017,0.91599288,120230.0,120220.0,0.0004]
[1752526783230,1.22645999,120230.0,120220.0,0.0004]
[1752526783438,1.25500248,120230.0,120220.0,0.0004]
[1752526783649,1.33938982,120230.0,120220.0,0.0004]
[1752526784406,1.39658982,120230.0,120220.0,0.0004]
[1752526785035,1.39758982,120230.0,120220.0,0.0004]
[1752526786349,1.37038982,120230.0,120220.0,0.0004]
[1752526786556,1.39878982,120230.0,120220.0,0.0004]
[1752526790566,1.39878982,120230.0,120200.0,0.0004]
[1752526790567,0.3475534,120210.0,120200.0,0.0004]
[1752526790853,1.17667989,120210.0,120200.0,0.00045104]
[1752526791076,1.17975989,120210.0,120200.0,0.00045104]
[1752526791278,1.1512174,120210.0,120200.0,0.00045104]
[1752526791498,0.64562749,120210.0,120200.0,0.00045104]
[1752526791704,1.0938174,120210.0,120200.0,0.00045104]
[1752526792119,0.9636174,120210.0,120200.0,0.00045104]
[1752526792361,0.65598051,120210.0,120200.0,0.06239104]
[1752526792573,1.03641042,120210.0,120200.0,0.00045104]
[1752526792775,1.04041042,120210.0,120200.0,0.00045104]
[1752526792979,1.11772776,120210.0,120200.0,0.00045104]
[1752526794471,1.12080776,120210.0,120200.0,0.00045104]
[1752526795721,0.74233785,120210.0,120200.0,0.00045104]
[1752526795951,1.12180776,120210.0,120200.0,0.00045104]
[1752526796623,1.17810776,120210.0,120200.0,0.00045104]
[1752526800461,1.54665025,120210.0,120200.0,0.00045104]
[1752526800700,1.54665025,120210.0,120200.0,1e-08]
[1752526800916,1.51810776,120210.0,120200.0,1e-08]
[1752526801127,1.58223316,120210.0,120200.0,1e-08]
[1752526801762,1.39098776,120210.0,120200.0,1e-08]
[1752526801970,1.51814776,120210.0,120200.0,1e-08]
[1752526802607,1.58227316,120210.0,120200.0,1e-08]
[1752526804104,1.98227316,120210.0,120200.0,1e-08]
[1752526805603,1.60380325,120210.0,120200.0,1e-08]
[1752526805817,1.73468776,120210.0,120200.0,1e-08]
[1752526806069,1.86184776,120210.0,120200.0,1e-08]
[1752526806518,1.91874776,120210.0,120200.0,1e-08]
[1752526808410,1.93424368,120210.0,120200.0,1e-08]
[1752526808854,1.91874776,120210.0,120200.0,1e-08]
[1752526809061,1.93424372,120210.0,120200.0,1e-08]
[1752526809480,1.93425497,120210.0,120200.0,1e-08]
[1752526809885,1.93425506,120210.0,120200.0,1e-08]
[1752526810323,1.9420162,120210.0,120200.0,1e-08]
[1752526810528,1.95987529,120210.0,120200.0,1e-08]
[1752526813261,1.96570474,120210.0,120200.0,1e-08]
[1752526813682,1.9657275,120210.0,120200.0,1e-08]
[1752526814398,0.55874952,120200.0,120190.0,1e-08]
[1752526814615,6.83363986,120200.0,120190.0,1e-08]
[1752526814861,6.49540412,120200.0,120190.0,1e-08]
[1752526815066,6.5061792,120200.0,120190.0,1e-08]
[1752526815322,6.5508753,120200.0,120190.0,1e-08]
[1752526817361,6.5548753,120200.0,120190.0,1e-08]
[1752526818067,6.55493093,120200.0,120190.0,1e-08]
[1752526818628,6.55493074,120200.0,120190.0,1e-08]
[1752526819361,6.93610924,120200.0,120190.0,1e-08]
[1752526819363,7.08610924,120200.0,120190.0,1e-08]
[1752526819945,7.05660924,120200.0,120190.0,1e-08]
[1752526820161,1.45906015,120200.0,120190.0,1e-08]
[1752526820386,1.55309275,120200.0,120190.0,0.03132001]
[1752526820602,1.55309275,120200.0,120190.0,0.03454001]
[1752526820822,1.90918477,120200.0,120190.0,0.03454001]
[1752526821042,1.90918679,120200.0,120190.0,0.06414001]
[1752526821253,1.99050413,120200.0,120190.0,0.06414001]
[1752526821473,2.19018413,120200.0,120190.0,0.06414001]
[1752526821898,2.18435193,120200.0,120190.0,0.06414001]
[1752526823722,2.05719193,120200.0,120190.0,0.06414001]
[1752526823934,2.19019078,120200.0,120190.0,0.06414001]
[1752526824154,2.19019078,120200.0,120190.0,0.03454001]
[1752526824371,2.21256867,120200.0,120190.0,1e-08]
[1752526824809,2.59103858,120200.0,120190.0,1e-08]
[1752526825234,2.59103858,120200.0,120190.0,0.02760001]
[1752526825676,2.21256867,120200.0,120190.0,0.02760001]
[1752526826843,2.18340362,120200.0,120190.0,0.02760001]
[1752526827052,1.72258443,120200.0,120190.0,0.02760001]
[1752526827888,1.72258443,120200.0,120190.0,0.05760001]
[1752526828517,2.12258443,120200.0,120190.0,0.05760001]
[1752526831573,2.10020654,120200.0,120190.0,0.05760001]
[1752526832401,2.09437038,120200.0,120190.0,0.05760001]
[1752526833065,2.5197634,120200.0,120190.0,0.06294001]
[1752526833280,2.49154711,120200.0,120190.0,0.06294001]
[1752526833898,2.49738548,120200.0,120190.0,0.06294001]
[1752526834213,2.49154711,120200.0,120190.0,0.06294001]
[1752526834460,2.48754711,120200.0,120190.0,0.06294001]
[1752526835522,2.46420246,120200.0,120190.0,0.06294001]
[1752526835765,2.49055657,120200.0,120190.0,0.06294001]
[1752526837387,2.47498716,120200.0,120190.0,0.06294001]
[1752526838572,2.1165109,120200.0,120190.0,0.06294001]
[1752526838789,1.9916709,120200.0,120190.0,0.06294001]
[1752526838993,1.9937009,120200.0,120190.0,0.06294001]
[1752526840531,1.9916709,120200.0,120190.0,0.06294001]
[1752526841305,1.98388512,120200.0,120190.0,0.06294001]
[1752526841507,2.06520246,120200.0,120190.0,0.06294001]
[1752526845323,2.06723246,120200.0,120190.0,0.05969001]
[1752526845540,2.11060449,120200.0,120190.0,0.05760001]
[1752526846062,2.11359449,120200.0,120190.0,1e-08]
[1752526846278,0.3392786,120180.0,120170.0,0.00369]
[1752526846489,1.06937445,120180.0,120170.0,0.00578]
[1752526847533,1.09791694,120180.0,120170.0,0.00578]
[1752526848988,1.09791694,120180.0,120170.0,0.03568]
[1752526849418,1.09791694,120180.0,120170.0,0.00044]
[1752526849419,1.86335313,120180.0,120170.0,0.00044]
[1752526849640,1.87114698,120180.0,120170.0,0.00044]
[1752526849852,0.67930768,120160.0,120150.0,0.00325]
[1752526850064,0.52932223,120150.0,120140.0,0.03539]
[1752526850274,1.12764266,120150.0,120140.0,0.03748]
[1752526850475,1.18135663,120150.0,120140.0,0.03748]
[1752526850681,1.2169395,120150.0,120140.0,0.03748]
[1752526851315,1.2169395,120150.0,120140.0,0.00793321]
[1752526851518,1.29825684,120150.0,120140.0,0.00259321]
[1752526852553,1.29825684,120150.0,120140.0,0.00774321]
[1752526852760,1.29825684,120150.0,120140.0,0.00874321]
[1752526853150,1.23413148,120150.0,120140.0,0.00874321]
[1752526854141,1.26267397,120150.0,120140.0,0.00874321]
[1752526854619,1.26267397,120150.0,120140.0,0.00555321]
[1752526855952,1.26267397,120150.0,120140.0,0.00874321]
[1752526859301,1.23413148,120150.0,120140.0,0.00874321]
[1752526860910,1.43385148,120150.0,120140.0,0.00874321]
[1752526865474,1.43385148,120150.0,120140.0,0.00555321]
[1752526866721,1.43385148,120150.0,120140.0,0.00359321]
[1752526871935,1.30673148,120150.0,120140.0,0.00874321]
[1752526872188,1.43381148,120150.0,120140.0,0.03774321]
[1752526872429,1.43381148,120150.0,120140.0,0.03674321]
[1752526872845,0.50388354,120150.0,120140.0,0.06564321]
[1752526873052,0.75809997,120150.0,120140.0,0.11564321]
[1752526873457,0.77264082,120150.0,120140.0,0.11564321]
[1752526873675,0.62264082,120150.0,120140.0,0.2904392]
[1752526873791,0.58292849,120150.0,120140.0,0.29876261]
[1752526874004,0.28106711,120150.0,120140.0,0.31540908]
[1752526874204,0.43311498,120150.0,120140.0,0.31540922]
[1752526874541,0.61411477,120150.0,120140.0,0.30708595]
[1752526874740,0.61411477,120150.0,120140.0,0.31540922]
[1752526875081,0.60579219,120150.0,120140.0,0.2904392]
[1752526875207,0.67878681,120150.0,120140.0,0.11564321]
[1752526875407,0.67046389,120150.0,120140.0,0.11564321]
[1752526875834,0.67046389,120150.0,120140.0,0.11664321]
[1752526876036,0.67046389,120150.0,120140.0,0.28311565]
[1752526876243,0.67046389,120150.0,120140.0,0.29143927]
[1752526876847,0.58914655,120150.0,120140.0,0.29143927]
[1752526877774,0.58914655,120150.0,120140.0,0.29976282]
[1752526878815,0.58914655,120150.0,120140.0,0.31640971]
[1752526879020,0.58914655,120150.0,120140.0,0.32473305]
[1752526879021,0.59746934,120150.0,120140.0,0.32473305]
[1752526879234,0.59746934,120150.0,120140.0,0.3080863]
[1752526879886,0.58914655,120150.0,120140.0,0.3080863]
[1752526880295,0.58914655,120150.0,120140.0,0.29143927]
[1752526880711,0.58914655,120150.0,120140.0,0.3080863]
[1752526884807,0.58914655,120150.0,120140.0,0.31640971]
[1752526889603,0.38942655,120150.0,120140.0,0.31640971]
[1752526893396,0.38942655,120150.0,120140.0,0.32473305]
[1752526895912,0.38942655,120150.0,120140.0,0.31640971]
[1752526896120,0.38710655,120150.0,120140.0,0.31640971]
[1752526896526,0.26002655,120150.0,120140.0,0.31640971]
[1752526896726,0.64784987,120150.0,120140.0,0.31640971]
[1752526897732,0.77484987,120150.0,120140.0,0.31640971]
[1752526897958,0.38702655,120150.0,120140.0,0.31640971]
[1752526900710,0.38702655,120150.0,120140.0,0.32473305]
[1752526903711,0.38702655,120150.0,120140.0,0.31640971]
[1752526904915,0.38702655,120150.0,120140.0,0.3080863]
[1752526905854,0.38702655,120150.0,120140.0,0.29976282]
[1752526906072,0.77484987,120150.0,120140.0,0.11664321]
[1752526906285,0.92384833,120150.0,120140.0,0.00555321]
[1752526906483,1.32478833,120150.0,120140.0,0.00359321]
[1752526910874,1.25907721,120150.0,120140.0,0.00359321]
[1752526916920,1.17775987,120150.0,120140.0,0.00359321]
[1752526918728,1.17775987,120150.0,120140.0,0.05359321]
[1752526918859,1.17775987,120150.0,120140.0,0.00359321]
[1752526919085,1.17775987,120150.0,120140.0,0.05359321]
[1752526920604,1.17461987,120150.0,120140.0,0.05359321]
[1752526921723,1.20289631,120150.0,120140.0,0.00359321]
[1752526921956,1.20289631,120150.0,120140.0,0.05359321]
[1752526922957,1.20833631,120150.0,120140.0,0.00359321]
[1752526923167,1.30829631,120150.0,120140.0,0.00359321]
[1752526924976,1.30829631,120150.0,120140.0,0.00259321]
[1752526925205,1.50259455,120150.0,120140.0,0.00259321]
[1752526926162,1.46945455,120150.0,120140.0,0.00259321]
[1752526931779,1.34245455,120150.0,120140.0,0.00259321]
[1752526932005,1.11993733,120150.0,120140.0,0.00761321]
[1752526933503,1.12993733,120150.0,120140.0,0.00761321]
[1752526934439,1.42099811,120150.0,120140.0,0.00457321]
[1752526934666,1.42099811,120150.0,120140.0,0.00259321]
[1752526934865,1.50231545,120150.0,120140.0,0.00259321]
[1752526937047,1.53291545,120150.0,120140.0,0.00259321]
[1752526943747,1.50231545,120150.0,120140.0,0.00259321]
[1752526945113,1.37539545,120150.0,120140.0,0.00259321]
[1752526945321,1.50227545,120150.0,120140.0,0.00259321]
[1752526946588,0.71195655,120150.0,120140.0,0.00792321]
[1752526946797,1.12989733,120150.0,120140.0,0.00792321]
[1752526947004,1.42095811,120150.0,120140.0,0.00792321]
[1752526948426,1.42095811,120150.0,120140.0,0.00259321]
[1752526952011,0.83883655,120150.0,120140.0,0.00259321]
[1752526952222,1.42095811,120150.0,120140.0,0.00259321]
[1752526954572,1.42095811,120150.0,120140.0,0.00201662]
[1752526957746,1.50227545,120150.0,120140.0,0.00201662]
[1752526961206,1.50227545,120150.0,120140.0,0.60014979]
[1752526961207,0.53730955,120150.0,120140.0,0.60014979]
[1752526961410,0.738971,120150.0,120140.0,0.60014979]
[1752526961596,0.1118904,120150.0,120140.0,0.60847292]
[1752526961824,0.2325122,120150.0,120140.0,0.60847292]
[1752526962031,0.23251213,120150.0,120140.0,0.60847292]
[1752526962275,0.21586711,120150.0,120140.0,0.60847292]
[1752526962687,0.22418948,120150.0,120140.0,0.60847292]
[1752526962898,0.08902711,120150.0,120140.0,0.60947292]
[1752526963115,0.23251192,120150.0,120140.0,0.70622799]
[1752526963324,0.22234948,120150.0,120140.0,0.70622799]
[1752526963984,0.22234948,120150.0,120140.0,0.31841214]
[1752526964190,0.22234948,120150.0,120140.0,0.31741214]
[1752526964400,0.22234948,120150.0,120140.0,0.31941214]
[1752526964604,0.23899457,120150.0,120140.0,0.31941214]
[1752526965517,0.23067192,120150.0,120140.0,0.31941214]
[1752526966117,0.21402711,120150.0,120140.0,0.31941214]
[1752526966343,0.22234941,120150.0,120140.0,0.31941214]
[1752526966905,0.01,120150.0,120140.0,0.75722799]
[1752526967338,0.1368,120150.0,120140.0,0.75722799]
[1752526973559,0.01,120150.0,120140.0,0.75722799]
[1752526974534,0.01,120150.0,120140.0,1.1765751]
[1752526975124,0.01,120150.0,120140.0,1.1805751]
[1752526977189,0.19251112,120170.0,120160.0,0.3520106]
[1752526977190,0.06571112,120170.0,120160.0,0.3520106]
[1752526977408,0.06571112,120170.0,120160.0,1.52628247]
[1752526977619,0.06571112,120190.0,120180.0,0.35197875]
[1752526977832,0.06571112,120190.0,120180.0,0.7419246]
[1752526978261,0.06571112,120190.0,120180.0,0.7449246]
[1752526978936,0.06576208,120190.0,120180.0,0.7449246]
[1752526979149,0.06576208,120190.0,120180.0,0.77273177]
[1752526985419,0.07408161,120190.0,120180.0,0.77273177]
[1752526986457,0.07408168,120190.0,120180.0,0.77273177]
[1752526986652,0.07408161,120190.0,120180.0,0.77273177]
[1752526987383,0.32183191,120190.0,120180.0,0.19353717]
[1752526987632,0.19139466,120170.0,120160.0,0.2665882]
[1752526987843,0.70593051,120170.0,120160.0,0.22989618]
[1752526988053,0.18310382,120150.0,120140.0,0.31848274]
[1752526988259,0.31814661,120150.0,120140.0,0.27061281]
[1752526988470,0.14336481,120150.0,120140.0,0.33725914]
[1752526988691,0.15168746,120150.0,120140.0,0.33725914]
[1752526989125,0.14336481,120150.0,120140.0,0.33725914]
[1752526989348,0.14341575,120150.0,120140.0,0.36605914]
[1752526989794,0.15173833,120150.0,120140.0,0.36605914]
[1752526990249,0.15173833,120150.0,120140.0,0.36905914]
[1752526991077,0.16006105,120150.0,120140.0,0.36905914]
[1752526991278,0.15173833,120150.0,120140.0,0.36905914]
[1752526991663,0.16006105,120150.0,120140.0,0.36905914]
[1752526991873,0.15173833,120150.0,120140.0,0.36905914]
[1752526992500,0.16006098,120150.0,120140.0,0.36905914]
[1752526992919,0.16838377,120150.0,120140.0,0.29025914]
[1752526993286,0.16006098,120150.0,120140.0,0.34025914]
[1752526994140,0.14341575,120150.0,120140.0,0.34025914]
[1752526994351,0.1517384,120150.0,120140.0,0.34025914]
[1752526994563,0.16006112,120150.0,120140.0,0.34025914]
[1752526994769,0.16838391,120150.0,120140.0,0.33193601]
[1752526994983,0.16838391,120150.0,120140.0,0.05999341]
[1752526994984,0.69970089,120150.0,120140.0,0.05999341]
[1752526995237,0.811448,120150.0,120140.0,0.22133585]
[1752526995412,0.42363215,120150.0,120140.0,0.22965947]
[1752526995616,0.42363215,120150.0,120140.0,0.23798302]
[1752526995821,0.42363215,120150.0,120140.0,0.25462991]
[1752526996247,0.42363215,120150.0,120140.0,0.26295325]
[1752526996890,0.42363215,120150.0,120140.0,0.2629529]
[1752526997497,0.42363215,120150.0,120140.0,0.25462963]
[1752526997696,0.42363215,120150.0,120140.0,0.33294697]
[1752526997933,0.42363215,120150.0,120140.0,0.2650829]
[1752526998143,0.42363215,120150.0,120140.0,0.2660829]
[1752526998803,0.42363215,120150.0,120140.0,0.25775963]
[1752526999050,0.42363215,120150.0,120140.0,0.24943629]
[1752526999534,0.25717356,120150.0,120140.0,0.26608276]
[1752526999798,0.43195507,120150.0,120140.0,0.2660829]
[1752527000056,0.43195507,120150.0,120140.0,0.26608255]
[1752527000529,0.81977092,120150.0,120140.0,0.17446585]
[1752527000749,0.84512626,120150.0,120140.0,0.00286341]
[1752527000981,0.84512626,120150.0,120140.0,0.05286341]
[1752527002947,0.84512626,120150.0,120140.0,0.00286341]
[1752527003154,0.84512626,120150.0,120140.0,0.05286341]
[1752527004375,0.84512626,120150.0,120140.0,0.05186341]
[1752527005238,0.24885077,120150.0,120140.0,0.66139652]
[1752527005472,0.22476286,120150.0,120140.0,0.69925506]
[1752527005680,0.22476286,120150.0,120140.0,0.66885506]
[1752527005884,0.22476279,120150.0,120140.0,0.28103921]
[1752527006310,0.24140823,120150.0,120140.0,0.28103921]
[1752527006746,0.24140823,120150.0,120140.0,0.66885506]
[1752527007363,0.24140823,120150.0,120140.0,0.28103921]
[1752527007968,5.094e-05,120150.0,120140.0,0.74735506]
[1752527008170,0.12677094,120150.0,120140.0,0.74735506]
[1752527008821,0.13509324,120150.0,120140.0,0.74735506]
[1752527008975,0.14341575,120150.0,120140.0,0.74735506]
[1752527009352,0.13509324,120150.0,120140.0,0.74735506]
[1752527009911,0.12677094,120150.0,120140.0,0.74735506]
[1752527010119,0.12677094,120150.0,120140.0,0.8286724]
[1752527010291,0.12677094,120150.0,120140.0,0.74735506]
[1752527019393,0.13509338,120150.0,120140.0,0.74735506]
[1752527022166,0.12677094,120150.0,120140.0,0.74735506]
[1752527023470,0.13509331,120150.0,120140.0,0.74735506]
[1752527024117,0.13509324,120150.0,120140.0,0.74735506]
[1752527029879,0.14341561,120150.0,120140.0,0.35953921]
[1752527030092,0.15173819,120150.0,120140.0,0.69455506]
[1752527030252,0.15025812,120150.0,120140.0,0.71825506]
[1752527031614,0.15025805,120150.0,120140.0,0.71825506]
[1752527032220,0.14193561,120150.0,120140.0,0.71825506]
[1752527032420,0.13361324,120150.0,120140.0,0.71825506]
[1752527033000,0.14193568,120150.0,120140.0,0.71825506]
[1752527034120,0.13361324,120150.0,120140.0,0.71825506]
[1752527034326,0.14193561,120150.0,120140.0,0.71825506]
[1752527036248,0.12529094,120150.0,120140.0,0.71825506]
[1752527036988,0.13361324,120150.0,120140.0,0.71825506]
[1752527037432,0.12529094,120150.0,120140.0,0.71825506]
[1752527038295,0.13361331,120150.0,120140.0,0.71825506]
[1752527038555,0.12529094,120150.0,120140.0,0.71825506]
[1752527041580,0.13361324,120150.0,120140.0,0.71825506]
[1752527042086,0.03412189,120160.0,120150.0,0.06664516]
[1752527042293,0.24327472,120160.0,120150.0,0.63147633]
[1752527042478,0.26907472,120160.0,120150.0,0.6293956]
[1752527042885,0.26075263,120160.0,120150.0,0.6293956]
[1752527043091,0.26907472,120160.0,120150.0,0.24157975]
[1752527043301,0.26075263,120160.0,120150.0,0.24157975]
[1752527043509,0.26907472,120160.0,120150.0,0.24157975]
[1752527043939,0.27107472,120160.0,120150.0,0.24157975]
[1752527044466,0.43751946,120160.0,120150.0,0.22493466]
[1752527044618,0.4208761,120160.0,120150.0,0.05015321]
[1752527045392,0.4208761,120160.0,120150.0,0.2166118]
[1752527045844,0.4208761,120160.0,120150.0,0.22493472]
[1752527046986,0.4208761,120160.0,120150.0,0.05847613]
[1752527047522,0.4208761,120160.0,120150.0,0.22493472]
[1752527048251,0.42942955,120160.0,120150.0,0.22493472]
[1752527049973,0.42110746,120160.0,120150.0,0.05015321]
[1752527050172,0.42110746,120160.0,120150.0,0.2166118]
[1752527050386,0.41255401,120160.0,120150.0,0.22493472]
[1752527050792,0.41255401,120160.0,120150.0,0.23325758]
[1752527052361,0.41255401,120160.0,120150.0,0.22493472]
[1752527052568,0.41255401,120160.0,120150.0,0.22994472]
[1752527052913,0.42106837,120160.0,120150.0,0.22994472]
[1752527053951,0.42106837,120160.0,120150.0,0.05516321]
[1752527054177,0.42106837,120160.0,120150.0,0.05214321]
[1752527054382,0.42106837,120160.0,120150.0,0.05015321]
[1752527055028,0.42106837,120160.0,120150.0,0.34102367]
[1752527055258,0.75027968,120160.0,120150.0,0.05015321]
[1752527055465,1.04419014,120160.0,120150.0,0.05015321]
[1752527055677,0.45940922,120160.0,120150.0,0.22493466]
[1752527055887,0.45940922,120160.0,120150.0,0.05015321]
[1752527056248,0.45940922,120160.0,120150.0,0.22493472]
[1752527056652,0.45940922,120160.0,120150.0,0.29698005]
[1752527056853,0.45940922,120160.0,120150.0,0.12219854]
[1752527057325,0.45940922,120160.0,120150.0,0.413069]
[1752527057849,0.43560922,120160.0,120150.0,0.58785051]
[1752527058436,0.43560922,120160.0,120150.0,0.12219854]
[1752527058638,0.43560922,120160.0,120150.0,0.34102367]
[1752527058917,0.43560922,120160.0,120150.0,0.50748226]
[1752527059533,0.43560922,120160.0,120150.0,0.51580512]
[1752527059934,0.43560922,120160.0,120150.0,0.34102367]
[1752527060298,0.43560922,120160.0,120150.0,0.51580518]
[1752527060501,0.08334711,120160.0,120150.0,0.88745359]
[1752527060724,0.08334711,120160.0,120150.0,0.93745359]
[1752527060725,0.12864,120160.0,120150.0,0.93745359]
[1752527061325,0.12864,120160.0,120150.0,1.27745359]
[1752527061544,0.12664,120160.0,120150.0,1.27745359]
[1752527061727,0.099831,120190.0,120180.0,0.06664114]
[1752527061932,0.40766996,120190.0,120180.0,0.85722996]
[1752527062128,0.24126677,120190.0,120180.0,0.86035996]
[1752527062292,0.23294668,120190.0,120180.0,0.83655996]
[1752527062496,0.42715029,120190.0,120180.0,0.52072835]
[1752527062754,0.42715029,120190.0,120180.0,0.52904913]
[1752527062967,0.42715029,120190.0,120180.0,0.23817867]
[1752527063174,0.40335029,120190.0,120180.0,0.23817867]
[1752527063509,0.40135029,120190.0,120180.0,0.24649938]
[1752527063718,0.00832223,120160.0,120150.0,0.12525321]
[1752527063896,0.82145279,120160.0,120150.0,0.00015321]
[1752527064146,0.83897364,120160.0,120150.0,0.05015321]
[1752527064351,0.45137493,120160.0,120150.0,0.05015321]
[1752527064567,0.83897364,120160.0,120150.0,0.05515321]
[1752527064779,0.45137493,120160.0,120150.0,0.05515321]
[1752527064990,0.83897364,120160.0,120150.0,0.00515321]
[1752527065197,0.83897364,120160.0,120150.0,0.05715321]
[1752527066031,0.83897364,120160.0,120150.0,0.05515321]
[1752527066239,0.45337493,120160.0,120150.0,0.05515321]
[1752527066443,0.84097364,120160.0,120150.0,0.05515321]
[1752527069738,0.42619493,120160.0,120150.0,0.06085487]
[1752527069942,0.38675408,120160.0,120150.0,0.06085487]
[1752527070274,0.38675408,120160.0,120150.0,0.06597487]
[1752527072806,0.002,120160.0,120150.0,0.65951497]
[1752527073050,0.14528357,120160.0,120150.0,0.70901497]
[1752527073283,0.3200504,120160.0,120150.0,0.70901511]
[1752527073518,0.32837256,120160.0,120150.0,0.71733762]
[1752527073748,0.16192782,120160.0,120150.0,0.72566006]
[1752527074019,0.33669479,120160.0,120150.0,0.72566006]
[1752527074252,0.16192782,120160.0,120150.0,0.72566006]
[1752527074453,0.15360566,120160.0,120150.0,0.72566006]
[1752527074906,0.14328357,120160.0,120150.0,0.72566006]
[1752527075258,0.1432835,120160.0,120150.0,0.72566006]
[1752527075696,0.15160545,120160.0,120150.0,0.72566006]
[1752527076127,0.15992754,120160.0,120150.0,0.72566006]
[1752527078053,0.1682497,120160.0,120150.0,0.72566006]
[1752527078466,0.1432835,120160.0,120150.0,0.72566006]
[1752527078709,0.15160545,120160.0,120150.0,0.72566006]
[1752527079539,0.15992747,120160.0,120150.0,0.33806135]
[1752527079746,0.16825004,120160.0,120150.0,0.72566006]
[1752527079954,0.15992788,120160.0,120150.0,0.72566006]
[1752527080368,0.15160579,120160.0,120150.0,0.72566006]
[1752527080798,0.15992788,120160.0,120150.0,0.72566006]
[1752527083703,0.33469485,120160.0,120150.0,0.71733762]
[1752527084150,0.33469485,120160.0,120150.0,0.70901511]
[1752527084357,0.31805108,120160.0,120150.0,0.69236988]
[1752527084567,0.30340697,120160.0,120150.0,0.08048972]
[1752527084783,0.32810697,120160.0,120150.0,0.08048972]
[1752527084996,0.30340697,120160.0,120150.0,0.24902904]
[1752527085210,0.30140697,120160.0,120150.0,0.24694831]
[1752527085455,0.29508474,120160.0,120150.0,0.08048972]
[1752527085679,0.31848474,120160.0,120150.0,0.08048972]
[1752527087876,0.17478138,120150.0,120140.0,0.05499341]
[1752527088091,0.1831041,120150.0,120140.0,0.23193283]
[1752527088306,0.1831041,120150.0,120140.0,0.28932589]
[1752527088523,0.1831041,120150.0,120140.0,0.29764944]
[1752527088726,0.1831041,120150.0,120140.0,0.30597271]
[1752527089433,0.1831041,120150.0,120140.0,0.69357142]
[1752527089809,0.1831041,120150.0,120140.0,0.69557142]
[1752527094012,0.1831041,120150.0,120140.0,0.68724815]